fUST/lending_fUST_20250912
["ID","MTS","AMOUNT","RATE_DAILY","PERIOD"]
[384895038,1757621432666,-14854.54671356,0.00013727,2]
[384895039,1757621432676,-500.0,0.00013728,2]
[384895040,1757621432686,-171.78718307,0.00013728,2]
[384895041,1757621432696,-480.0,0.00013728,2]
[384895042,1757621432706,-480.0,0.00013728,2]
[384895043,1757621432716,-480.0,0.00013728,2]
[384895045,1757621432871,-480.0,0.00013728,2]
[384895046,1757621432888,-480.0,0.00013728,2]
[384895047,1757621432897,-489.22,0.00013728,2]
[384895048,1757621432907,-305.06665259,0.00013728,2]
[384895049,1757621432916,-480.0,0.00013728,2]
[384895050,1757621432925,-480.0,0.00013728,2]
[384895051,1757621432934,-480.0,0.00013728,2]
[384895052,1757621432944,-480.0,0.00013728,2]
[384895053,1757621432953,-480.0,0.00013728,2]
[384895054,1757621432962,-480.0,0.00013728,2]
[384895055,1757621432971,-163.85,0.00013728,2]
[384895056,1757621432980,-427.28577444,0.00013728,2]
[384895057,1757621432990,-480.0,0.00013728,2]
[384895058,1757621432999,-480.0,0.00013728,2]
[384895059,1757621433009,-575.35,0.00013728,2]
[384895060,1757621433019,-480.0,0.00013728,2]
[384895061,1757621433028,-480.0,0.00013728,2]
[384895062,1757621433038,-480.0,0.00013728,2]
[384895063,1757621433048,-480.0,0.00013728,2]
[384895064,1757621433058,-480.0,0.00013728,2]
[384895065,1757621433067,-480.0,0.00013728,2]
[384895066,1757621433077,-748.33,0.00013728,2]
[384895067,1757621433087,-480.0,0.00013728,2]
[384895068,1757621433098,-480.0,0.00013728,2]
[384895069,1757621433108,-480.0,0.00013728,2]
[384895070,1757621433117,-480.0,0.00013728,2]
[384895071,1757621433126,-628.01,0.00013728,2]
[384895072,1757621433137,-480.0,0.00013728,2]
[384895073,1757621433146,-480.0,0.00013728,2]
[384895074,1757621433156,-480.0,0.00013728,2]
[384895075,1757621433165,-480.0,0.00013728,2]
[384895076,1757621433175,-480.0,0.00013728,2]
[384895077,1757621433184,-480.0,0.00013728,2]
[384895078,1757621433194,-1511.07,0.00013728,2]
[384895079,1757621433204,-480.0,0.00013728,2]
[384895080,1757621433213,-480.0,0.00013728,2]
[384895081,1757621433224,-480.0,0.00013728,2]
[384895082,1757621433234,-480.0,0.00013728,2]
[384895083,1757621433244,-480.0,0.00013728,2]
[384895084,1757621433254,-1252.73,0.00013728,2]
[384895085,1757621433269,-480.0,0.00013728,2]
[384895086,1757621433285,-229.79,0.00013728,2]
[384895087,1757621433294,-480.0,0.00013728,2]
[384895088,1757621433304,-480.0,0.00013728,2]
[384895089,1757621433313,-480.0,0.00013728,2]
[384895090,1757621433324,-480.0,0.00013728,2]
[384895091,1757621433333,-480.0,0.00013728,2]
[384895092,1757621433342,-480.0,0.00013728,2]
[384895093,1757621433351,-480.0,0.00013728,2]
[384895094,1757621433361,-947.71,0.00013728,2]
[384895095,1757621433370,-480.0,0.00013728,2]
[384895096,1757621433379,-480.0,0.00013728,2]
[384895097,1757621433388,-294.73084628,0.00013728,2]
[384895098,1757621433398,-480.0,0.00013728,2]
[384895099,1757621433408,-485.42472001,0.00013728,2]
[384895100,1757621433417,-665.36,0.00013728,2]
[384895101,1757621433428,-480.0,0.00013728,2]
[384895102,1757621433438,-160.63,0.00013728,2]
[384895103,1757621433448,-480.0,0.00013728,2]
[384895104,1757621433457,-942.41,0.00013728,2]
[384895105,1757621433466,-289.51,0.00013728,2]
[384895106,1757621433476,-480.0,0.00013728,2]
[384895107,1757621433485,-480.0,0.00013728,2]
[384895108,1757621433495,-480.0,0.00013728,2]
[384895109,1757621433504,-480.0,0.00013728,2]
[384895110,1757621433514,-480.0,0.00013728,2]
[384895111,1757621433523,-480.0,0.00013728,2]
[384895112,1757621433533,-480.0,0.00013728,2]
[384895113,1757621433542,-480.0,0.00013728,2]
[384895114,1757621433552,-480.0,0.00013728,2]
[384895115,1757621433561,-480.0,0.00013728,2]
[384895116,1757621433571,-480.0,0.00013728,2]
[384895117,1757621433580,-480.0,0.00013728,2]
[384895118,1757621433589,-480.0,0.00013728,2]
[384895119,1757621433599,-480.0,0.00013728,2]
[384895120,1757621433608,-480.0,0.00013728,2]
[384895121,1757621433618,-480.0,0.00013728,2]
[384895122,1757621433627,-480.0,0.00013728,2]
[384895123,1757621433637,-1016.46,0.00013728,2]
[384895124,1757621433647,-480.0,0.00013728,2]
[384895125,1757621433656,-480.0,0.00013728,2]
[384895126,1757621433665,-480.0,0.00013728,2]
[384895127,1757621433674,-480.0,0.00013728,2]
[384895128,1757621433683,-480.0,0.00013728,2]
[384895129,1757621433693,-480.0,0.00013728,2]
[384895130,1757621433703,-480.0,0.00013728,2]
[384895131,1757621433711,-480.0,0.00013728,2]
[384895132,1757621433721,-480.0,0.00013728,2]
[384895133,1757621433730,-480.0,0.00013728,2]
[384895134,1757621433740,-321.260043,0.00013728,2]
[384895135,1757621433749,-480.0,0.00013728,2]
[384895136,1757621433758,-480.0,0.00013728,2]
[384895137,1757621433767,-480.0,0.00013728,2]
[384895138,1757621433776,-480.0,0.00013728,2]
[384895139,1757621433786,-780.99,0.00013728,2]
[384895140,1757621433795,-480.0,0.00013728,2]
[384895141,1757621433804,-480.0,0.00013729,2]
[384895142,1757621433813,-480.0,0.00013729,2]
[384895143,1757621433823,-354.19941838,0.00013729,2]
[384895144,1757621433832,-480.0,0.00013729,2]
[384895145,1757621433841,-480.0,0.00013729,2]
[384895146,1757621433851,-480.0,0.00013729,2]
[384895147,1757621433860,-480.0,0.00013729,2]
[384895148,1757621433870,-480.0,0.00013729,2]
[384895149,1757621433879,-480.0,0.00013729,2]
[384895150,1757621433889,-480.0,0.00013729,2]
[384895151,1757621433899,-480.0,0.00013729,2]
[384895152,1757621433908,-480.0,0.00013729,2]
[384895153,1757621433917,-247.19650895,0.00013729,2]
[384895154,1757621433928,-480.0,0.00013729,2]
[384895155,1757621433937,-480.0,0.00013729,2]
[384895156,1757621433947,-480.0,0.00013729,2]
[384895157,1757621433956,-1716.19,0.00013729,2]
[384895158,1757621433965,-480.0,0.00013729,2]
[384895159,1757621433975,-10152.51,0.00013729,2]
[384895160,1757621433984,-480.0,0.00013729,2]
[384895161,1757621433994,-774.35,0.00013729,2]
[384895162,1757621434003,-480.0,0.00013729,2]
[384895163,1757621434013,-480.0,0.00013729,2]
[384895164,1757621434022,-826.24,0.00013729,2]
[384895165,1757621434031,-480.0,0.00013729,2]
[384895166,1757621434040,-480.0,0.00013729,2]
[384895167,1757621434049,-480.0,0.00013729,2]
[384895168,1757621434058,-480.0,0.00013729,2]
[384895169,1757621434067,-480.0,0.00013729,2]
[384895170,1757621434076,-480.0,0.00013729,2]
[384895171,1757621434085,-3357.19,0.00013729,2]
[384895172,1757621434094,-1054.57,0.00013729,2]
[384895173,1757621434103,-506.04,0.00013729,2]
[384895174,1757621434112,-629.1,0.00013729,2]
[384895175,1757621434122,-480.0,0.00013729,2]
[384895176,1757621434131,-480.0,0.00013729,2]
[384895177,1757621434140,-1089.03,0.00013729,2]
[384895178,1757621434150,-480.0,0.00013729,2]
[384895179,1757621434159,-567.48,0.0001373,2]
[384895180,1757621434168,-480.0,0.0001373,2]
[384895181,1757621434178,-279.17,0.0001373,2]
[384895182,1757621434187,-480.0,0.0001373,2]
[384895183,1757621434196,-480.0,0.0001373,2]
[384895184,1757621434206,-480.0,0.0001373,2]
[384895185,1757621434216,-480.0,0.0001373,2]
[384895186,1757621434226,-480.0,0.0001373,2]
[384895187,1757621434235,-480.0,0.0001373,2]
[384895188,1757621434245,-480.0,0.0001373,2]
[384895189,1757621434255,-331.78,0.00013731,2]
[384895190,1757621434265,-480.0,0.00013731,2]
[384895191,1757621434274,-480.0,0.00013731,2]
[384895192,1757621434284,-481.71795782,0.00013731,2]
[384895193,1757621434293,-530.95967032,0.00013975,2]
[384895194,1757621434303,-160.0,0.00013975,2]
[384895195,1757621434312,-160.0,0.00013975,2]
[384895196,1757621434322,-846.96613202,0.00013975,2]
[384895197,1757621434331,-233.10680167,0.00013975,2]
[384895198,1757621434341,-160.0,0.00013975,2]
[384895199,1757621434350,-417.15472785,0.00013975,2]
[384895200,1757621434359,-160.0,0.00013975,2]
[384895201,1757621434368,-217.69300629,0.00013975,2]
[384895202,1757621434377,-252.79856364,0.00014001,2]
[384895203,1757621434387,-290.16040466,0.00014001,2]
[384895204,1757621434396,-480.0,0.00014001,2]
[384895205,1757621434405,-515.28,0.00014001,2]
[384895206,1757621434415,-480.0,0.00014001,2]
[384895207,1757621434424,-564.39,0.00014001,2]
[384895208,1757621434433,-1928.5040221,0.00014002,2]
[384895209,1757621434443,-480.0,0.00014002,2]
[384895210,1757621434452,-557.92,0.00014002,2]
[384895211,1757621434462,-480.0,0.00014002,2]
[384895212,1757621434471,-480.0,0.00014002,2]
[384895213,1757621434481,-48.3784564,0.00014002,2]
[384895214,1757621434582,-277.94464223,0.00014002,2]
[384895215,1757621434594,-153.67690137,0.00014002,2]
[384895216,1757621434603,-264.54676838,0.00014002,2]
[384895217,1757621434615,-215.45323162,0.00014002,2]
[384895218,1757621434624,-482.22,0.00014002,2]
[384895219,1757621434633,-748.33,0.00014002,2]
[384895220,1757621434642,-480.0,0.00014002,2]
[384895221,1757621434651,-502.36,0.00014002,2]
[384895222,1757621434661,-480.0,0.00014002,2]
[384895223,1757621434670,-161.11891722,0.00014002,2]
[384895224,1757621434681,-318.88108278,0.00014002,2]
[384895225,1757621434691,-480.0,0.00014002,2]
[384895226,1757621434699,-480.0,0.00014002,2]
[384895227,1757621434709,-1511.07,0.00014002,2]
[384895228,1757621434718,-480.0,0.00014002,2]
[384895229,1757621434728,-480.0,0.00014002,2]
[384895230,1757621434737,-480.0,0.00014002,2]
[384895231,1757621434747,-1252.73,0.00014002,2]
[384895232,1757621434757,-480.0,0.00014002,2]
[384895233,1757621434766,-480.0,0.00014002,2]
[384895234,1757621434775,-480.0,0.00014002,2]
[384895235,1757621434784,-480.0,0.00014002,2]
[384895236,1757621434793,-480.0,0.00014002,2]
[384895237,1757621434803,-947.71,0.00014002,2]
[384895238,1757621434812,-480.0,0.00014002,2]
[384895239,1757621434821,-625.08,0.00014002,2]
[384895240,1757621434831,-480.0,0.00014002,2]
[384895241,1757621434840,-665.36,0.00014002,2]
[384895242,1757621434849,-480.0,0.00014002,2]
[384895243,1757621434859,-480.0,0.00014002,2]
[384895244,1757621434868,-942.41,0.00014002,2]
[384895245,1757621434877,-544.07,0.00014002,2]
[384895246,1757621434887,-480.0,0.00014002,2]
[384895247,1757621434896,-561.01,0.00014002,2]
[384895248,1757621434906,-480.0,0.00014002,2]
[384895249,1757621434915,-480.0,0.00014002,2]
[384895250,1757621434925,-480.0,0.00014002,2]
[384895251,1757621434934,-480.0,0.00014002,2]
[384895252,1757621434943,-480.0,0.00014002,2]
[384895253,1757621434952,-480.0,0.00014002,2]
[384895254,1757621434961,-480.0,0.00014002,2]
[384895255,1757621434970,-480.0,0.00014002,2]
[384895256,1757621434979,-480.0,0.00014002,2]
[384895257,1757621434989,-480.0,0.00014002,2]
[384895258,1757621434998,-480.0,0.00014002,2]
[384895259,1757621435009,-480.0,0.00014002,2]
[384895260,1757621435019,-1016.46,0.00014002,2]
[384895261,1757621435028,-480.0,0.00014002,2]
[384895262,1757621435037,-480.0,0.00014002,2]
[384895263,1757621435047,-480.0,0.00014002,2]
[384895264,1757621435055,-480.0,0.00014002,2]
[384895265,1757621435065,-480.0,0.00014002,2]
[384895266,1757621435074,-480.0,0.00014002,2]
[384895267,1757621435082,-480.0,0.00014002,2]
[384895268,1757621435091,-480.0,0.00014002,2]
[384895269,1757621435101,-480.0,0.00014002,2]
[384895270,1757621435110,-480.0,0.00014002,2]
[384895271,1757621435119,-480.0,0.00014002,2]
[384895272,1757621435128,-480.0,0.00014002,2]
[384895273,1757621435138,-780.99,0.00014002,2]
[384895274,1757621435147,-300.0,0.00014003,2]
[384895275,1757621435156,-300.0,0.00014003,2]
[384895276,1757621435165,-300.0,0.00014003,2]
[384895277,1757621435175,-300.0,0.00014003,2]
[384895278,1757621435184,-300.0,0.00014003,2]
[384895279,1757621435193,-300.0,0.00014003,2]
[384895280,1757621435202,-300.0,0.00014003,2]
[384895281,1757621435211,-300.0,0.00014003,2]
[384895282,1757621435220,-300.0,0.00014003,2]
[384895283,1757621435230,-300.0,0.00014003,2]
[384895284,1757621435239,-300.0,0.00014003,2]
[384895285,1757621435248,-300.0,0.00014003,2]
[384895286,1757621435257,-300.0,0.00014003,2]
[384895287,1757621435270,-300.0,0.00014003,2]
[384895288,1757621435279,-300.0,0.00014003,2]
[384895289,1757621435288,-566.11,0.00014003,2]
[384895290,1757621435298,-483.14,0.00014003,2]
[384895291,1757621435307,-480.0,0.00014003,2]
[384895292,1757621435316,-480.0,0.00014003,2]
[384895293,1757621435325,-1716.19,0.00014003,2]
[384895294,1757621435335,-480.0,0.00014003,2]
[384895295,1757621435345,-10152.51,0.00014003,2]
[384895296,1757621435354,-480.0,0.00014003,2]
[384895297,1757621435363,-774.35,0.00014003,2]
[384895298,1757621435372,-480.0,0.00014003,2]
[384895299,1757621435381,-826.24,0.00014003,2]
[384895300,1757621435391,-480.0,0.00014003,2]
[384895301,1757621435399,-480.0,0.00014003,2]
[384895302,1757621435408,-3357.19,0.00014003,2]
[384895303,1757621435418,-1054.57,0.00014003,2]
[384895304,1757621435427,-506.04,0.00014003,2]
[384895305,1757621435436,-474.28949432,0.00014003,2]
[384895318,1757621438108,-551.16,0.00013727,2]
[384895320,1757621438117,-317.79959998,0.00013728,2]
[384895321,1757621438161,-246.03040002,0.00013728,2]
[384895322,1757621438170,-154.81050568,0.00014003,2]
[384895323,1757621438179,-480.0,0.00014003,2]
[384895324,1757621438188,-576.8384498,0.00014003,2]
[384895325,1757621438199,-512.1915502,0.00014003,2]
[384895326,1757621438208,-600.0,0.00014004,2]
[384895327,1757621438216,-378.82841263,0.00014004,2]
[384895328,1757621438225,-480.0,0.00014004,2]
[384895329,1757621438235,-1298.39816484,0.00014176,2]
[384895330,1757621438244,-151.0,0.00014178,2]
[384895331,1757621438253,-201.060024,0.00014178,2]
[384895332,1757621438265,-201.060024,0.00014178,2]
[384895333,1757621438276,-201.060024,0.00014178,2]
[384895335,1757621438285,-201.060024,0.00014178,2]
[384895336,1757621438294,-12067.69419972,0.00014178,2]
[384895337,1757621438305,-995.80669269,0.00014178,2]
[384895339,1757621438315,-518.82190609,0.00014178,2]
[384895341,1757621438326,-9747.79416654,0.00014178,2]
[384895342,1757621438337,-17614.57727142,0.00014178,2]
[384895343,1757621438348,-6115.4882697,0.00014178,2]
[384895344,1757621438358,-644.02348662,0.00014178,2]
[384895345,1757621438369,-398.04150106,0.00014178,2]
[384895355,1757621440167,-480.0,0.00013728,2]
[384895357,1757621440176,-1573.18,0.00013728,2]
[384895359,1757621440185,-480.0,0.00014002,2]
[384895361,1757621440194,-65196.09690128,0.00014178,2]
[384895364,1757621440206,-1117.17499998,0.00014178,2]
[384895366,1757621440222,-20492.20792406,0.00014178,2]
[384895368,1757621440232,-480.78842307,0.00014225,2]
[384895370,1757621440241,-480.0,0.00014275,2]
[384895373,1757621440251,-564.39,0.00014275,2]
[384895375,1757621440260,-480.0,0.00014276,2]
[384895377,1757621440278,-480.0,0.00014276,2]
[384895378,1757621440288,-480.0,0.00014276,2]
[384895380,1757621440296,-480.0,0.00014276,2]
[384895382,1757621440305,-748.33,0.00014276,2]
[384895384,1757621440314,-480.0,0.00014276,2]
[384895386,1757621440323,-480.0,0.00014276,2]
[384895388,1757621440332,-1511.07,0.00014276,2]
[384895390,1757621440341,-480.0,0.00014276,2]
[384895392,1757621440351,-1252.73,0.00014276,2]
[384895394,1757621440360,-480.0,0.00014276,2]
[384895397,1757621440369,-480.0,0.00014276,2]
[384895400,1757621440378,-480.0,0.00014276,2]
[384895402,1757621440388,-947.71,0.00014276,2]
[384895405,1757621440397,-264.95,0.00014276,2]
[384895408,1757621440406,-665.36,0.00014276,2]
[384895411,1757621440415,-153.72,0.00014276,2]
[384895413,1757621440424,-480.0,0.00014276,2]
[384895415,1757621440434,-942.41,0.00014276,2]
[384895417,1757621440443,-480.0,0.00014276,2]
[384895419,1757621440452,-480.0,0.00014276,2]
[384895420,1757621440460,-480.0,0.00014276,2]
[384895421,1757621440470,-480.0,0.00014276,2]
[384895422,1757621440478,-480.0,0.00014276,2]
[384895423,1757621440487,-172.47,0.00014276,2]
[384895424,1757621440496,-480.0,0.00014276,2]
[384895425,1757621440505,-255.38,0.00014276,2]
[384895426,1757621440514,-329.44128998,0.00014276,2]
[384895427,1757621440523,-480.0,0.00014276,2]
[384895428,1757621440532,-1016.46,0.00014276,2]
[384895429,1757621440541,-480.0,0.00014276,2]
[384895430,1757621440550,-480.0,0.00014276,2]
[384895431,1757621440559,-208.89,0.00014276,2]
[384895432,1757621440568,-312.79,0.00014276,2]
[384895433,1757621440577,-480.0,0.00014276,2]
[384895434,1757621440586,-480.0,0.00014276,2]
[384895435,1757621440595,-519.61,0.00014276,2]
[384895446,1757621440812,-480.0,0.00014276,2]
[384895447,1757621440823,-780.99,0.00014276,2]
[384895448,1757621440832,-10152.51,0.00014277,2]
[384895450,1757621440842,-480.0,0.00014277,2]
[384895452,1757621440851,-774.35,0.00014277,2]
[384895454,1757621440861,-479.98885407,0.00014277,2]
[384895456,1757621440871,-826.24,0.00014277,2]
[384895458,1757621440881,-3357.19,0.00014277,2]
[384895460,1757621440890,-1054.57,0.00014277,2]
[384895462,1757621440900,-506.04,0.00014277,2]
[384895464,1757621440910,-629.1,0.00014277,2]
[384895466,1757621440919,-480.0,0.00014277,2]
[384895468,1757621440928,-1089.03,0.00014277,2]
[384895470,1757621440938,-565.36,0.00014278,2]
[384895472,1757621440948,-254.12552748,0.00014309,2]
[384895474,1757621440958,-500.0,0.00014349,2]
[384895476,1757621440967,-10583.28703691,0.00014365,2]
[384895478,1757621440976,-480.0,0.00014549,2]
[384895480,1757621440986,-564.39,0.00014549,2]
[384895482,1757621440996,-480.0,0.0001455,2]
[384895484,1757621441005,-480.0,0.0001455,2]
[384895486,1757621441015,-381.8,0.0001455,2]
[384895488,1757621441024,-480.0,0.0001455,2]
[384895490,1757621441034,-748.33,0.0001455,2]
[384895492,1757621441043,-480.0,0.0001455,2]
[384895494,1757621441052,-1511.07,0.0001455,2]
[384895496,1757621441063,-480.0,0.0001455,2]
[384895498,1757621441072,-1252.73,0.0001455,2]
[384895500,1757621441084,-480.0,0.0001455,2]
[384895502,1757621441093,-480.0,0.0001455,2]
[384895504,1757621441102,-947.71,0.0001455,2]
[384895506,1757621441111,-665.36,0.0001455,2]
[384895508,1757621441121,-942.41,0.0001455,2]
[384895510,1757621441130,-480.0,0.0001455,2]
[384895512,1757621441139,-480.0,0.0001455,2]
[384895514,1757621441148,-480.0,0.0001455,2]
[384895516,1757621441157,-503.81,0.0001455,2]
[384895518,1757621441166,-480.0,0.0001455,2]
[384895520,1757621441175,-1016.46,0.0001455,2]
[384895522,1757621441184,-480.0,0.0001455,2]
[384895524,1757621441193,-480.0,0.0001455,2]
[384895526,1757621441202,-480.0,0.0001455,2]
[384895528,1757621441211,-480.0,0.0001455,2]
[384895530,1757621441220,-780.99,0.0001455,2]
[384895532,1757621441229,-10152.51,0.00014551,2]
[384895534,1757621441238,-480.0,0.00014551,2]
[384895536,1757621441247,-774.35,0.00014551,2]
[384895538,1757621441256,-826.24,0.00014551,2]
[384895540,1757621441270,-3357.19,0.00014551,2]
[384895542,1757621441279,-1054.57,0.00014551,2]
[384895544,1757621441287,-506.04,0.00014551,2]
[384895546,1757621441296,-629.1,0.00014551,2]
[384895548,1757621441306,-201.060024,0.00014551,2]
[384895550,1757621441314,-201.060024,0.00014551,2]
[384895552,1757621441324,-201.060024,0.00014551,2]
[384895554,1757621441333,-201.060024,0.00014551,2]
[384895556,1757621441343,-480.0,0.00014551,2]
[384895558,1757621441352,-1089.03,0.00014551,2]
[384895560,1757621441361,-388.286,0.00014566,2]
[384895562,1757621441370,-976.0,0.00014619,2]
[384895564,1757621441379,-634.0,0.00014619,2]
[384895566,1757621441388,-2155.0,0.00014619,2]
[384895568,1757621441397,-387.452,0.00014619,2]
[384895570,1757621441405,-430.548,0.00014619,2]
[384895572,1757621441414,-2695.0,0.00014619,2]
[384895574,1757621441424,-480.0,0.00014823,2]
[384895576,1757621441433,-564.39,0.00014823,2]
[384895578,1757621441442,-480.0,0.00014824,2]
[384895580,1757621441451,-480.0,0.00014824,2]
[384895582,1757621441460,-480.0,0.00014824,2]
[384895584,1757621441469,-748.33,0.00014824,2]
[384895586,1757621441479,-480.0,0.00014824,2]
[384895588,1757621441488,-1511.07,0.00014824,2]
[384895590,1757621441497,-480.0,0.00014824,2]
[384895592,1757621441506,-1252.73,0.00014824,2]
[384895594,1757621441515,-480.0,0.00014824,2]
[384895596,1757621441524,-480.0,0.00014824,2]
[384895598,1757621441533,-947.71,0.00014824,2]
[384895600,1757621441542,-665.36,0.00014824,2]
[384895602,1757621441551,-188.91825655,0.00014824,2]
[384895605,1757621441574,-300.0,0.00014002,2]
[384895607,1757621441585,-360.61264469,0.00014002,2]
[384895610,1757621441596,-912.56735531,0.00014002,2]
[384895612,1757621441605,-753.49174345,0.00014824,2]
[384895613,1757621441615,-389.66,0.00014824,2]
[384895615,1757621441625,-480.0,0.00014824,2]
[384895617,1757621441634,-480.0,0.00014824,2]
[384895619,1757621441643,-480.0,0.00014824,2]
[384895621,1757621441652,-444.14203782,0.00014824,2]
[384895624,1757621441663,-572.31796218,0.00014824,2]
[384895626,1757621441672,-323.84502783,0.00014824,2]
[384895628,1757621441681,-480.0,0.00014824,2]
[384895630,1757621441690,-480.0,0.00014824,2]
[384895632,1757621441698,-480.0,0.00014824,2]
[384895634,1757621441707,-780.99,0.00014824,2]
[384895635,1757621441716,-10152.51,0.00014825,2]
[384895638,1757621441725,-480.0,0.00014825,2]
[384895639,1757621441736,-774.35,0.00014825,2]
[384895641,1757621441745,-826.24,0.00014825,2]
[384895643,1757621441754,-3357.19,0.00014825,2]
[384895646,1757621441763,-1054.57,0.00014825,2]
[384895647,1757621441772,-506.04,0.00014825,2]
[384895649,1757621441781,-629.1,0.00014825,2]
[384895651,1757621441790,-480.0,0.00014825,2]
[384895653,1757621441799,-1089.03,0.00014825,2]
[384895655,1757621441808,-500.0,0.00014862,2]
[384895657,1757621441818,-500.0,0.00014885,2]
[384895659,1757621441827,-500.0,0.00014885,2]
[384895661,1757621441836,-504.10830129,0.00014885,2]
[384895664,1757621441846,-500.0,0.00014885,2]
[384895666,1757621441855,-500.0,0.00014885,2]
[384895667,1757621441864,-500.0,0.00014885,2]
[384895670,1757621441874,-500.0,0.00014885,2]
[384895672,1757621441883,-500.0,0.00014885,2]
[384895673,1757621441894,-351.33990713,0.00014885,2]
[384895675,1757621441903,-500.0,0.00014885,2]
[384895677,1757621441912,-1000.0,0.00014897,2]
[384895679,1757621441921,-500.0,0.0001491,2]
[384895681,1757621441930,-500.0,0.00014963,2]
[384895683,1757621441940,-500.0,0.00014963,2]
[384895685,1757621441948,-500.0,0.00014963,2]
[384895687,1757621441957,-420.0,0.00015042,2]
[384895689,1757621441967,-180.73573499,0.00015097,2]
[384896117,1757621446304,-480.0,0.00014276,2]
[384896119,1757621446313,-1573.18,0.00014276,2]
[384896121,1757621446323,-480.0,0.0001455,2]
[384896123,1757621446332,-1573.18,0.0001455,2]
[384896125,1757621446342,-1208.27963677,0.00014824,2]
[384897552,1757621564383,24874.30554731,0.00013628,2]
[384897555,1757621620235,521.175827,0.00013699,2]
[384897561,1757621658512,836.2,0.00012329,2]
[384897563,1757621782290,195.9,0.00012329,2]
[384897564,1757621803691,337.29,0.00012329,2]
[384897565,1757621814227,870.2,0.00012329,2]
[384897566,1757621883220,1000.0,0.0001287,2]
[384897587,1757622268801,358.56052587,0.00013588,2]
[384897588,1757622283967,154.259125,0.00024,30]
[384897589,1757622292814,224.63839675,0.00013588,2]
[384897592,1757622403064,157.0,0.0002837,60]
[384897596,1757622468815,224.63839675,0.000151,7]
[384897599,1757622491695,418.18938481,0.00010618,2]
[384897600,1757622493725,10000.01,0.000125,2]
[384897601,1757622493747,1466.35404719,0.000125,2]
[384897604,1757622499529,224.63839675,0.000151,7]
[384897606,1757622507373,284.77289931,0.0001,2]
[384897609,1757622514908,10000.01,0.00013,2]
[384897610,1757622514930,10000.01,0.00013,2]
[384897611,1757622514954,10000.01,0.00013,2]
[384897612,1757622514975,10000.01,0.00013,2]
[384897613,1757622515000,9781.838819,0.00013,2]
[384897614,1757622515287,218.171181,0.00013586,2]
[384897615,1757622515312,81.828819,0.00013586,2]
[384897616,1757622516732,1000.0,0.0001,2]
[384897617,1757622518515,301.9999999,0.0002,120]
[384897620,1757622521888,10000.01,0.0001,2]
[384897621,1757622521910,7681.11842768,0.0001,2]
[384897622,1757622523083,300.0,0.00013586,2]
[384897623,1757622523121,9700.01,0.0001,2]
[384897624,1757622523142,10000.01,0.0001,2]
[384897625,1757622523163,10000.01,0.0001,2]
[384897626,1757622523185,10000.01,0.0001,2]
[384897627,1757622523207,932.45208142,0.0001,2]
[384897628,1757622523493,1726.39715215,0.0001,2]